fUST/lending_fUST_20250202
["ID","MTS","AMOUNT","RATE_DAILY","PERIOD"]
[351230091,1738458639817,-500.0,0.00016998,2]
[351230092,1738458639826,-500.0,0.00016998,2]
[351230093,1738458639835,-500.0,0.00016998,2]
[351230094,1738458639847,-500.0,0.00016998,2]
[351230095,1738458639856,-500.0,0.00016998,2]
[351230096,1738458639867,-500.0,0.00016998,2]
[351230098,1738458639877,-500.0,0.00016998,2]
[351230099,1738458639888,-500.0,0.00016998,2]
[351230100,1738458639898,-500.0,0.00016998,2]
[351230101,1738458639908,-500.0,0.00016998,2]
[351230102,1738458639920,-500.0,0.00016998,2]
[351230103,1738458639933,-500.0,0.00016998,2]
[351230104,1738458639943,-500.0,0.00016998,2]
[351230105,1738458639953,-500.0,0.00016998,2]
[351230106,1738458639963,-500.0,0.00016998,2]
[351230107,1738458639974,-5233.31,0.00016998,2]
[351230108,1738458639984,-500.0,0.00016998,2]
[351230109,1738458639994,-500.0,0.00016998,2]
[351230110,1738458640003,-500.0,0.00016998,2]
[351230111,1738458640013,-500.0,0.00016998,2]
[351230112,1738458640022,-500.0,0.00016998,2]
[351230113,1738458640031,-500.0,0.00016998,2]
[351230114,1738458640042,-504.08020048,0.00016998,2]
[351230115,1738458640058,-500.0,0.00016998,2]
[351230116,1738458640067,-500.0,0.00016998,2]
[351230117,1738458640077,-500.0,0.00016998,2]
[351230118,1738458640088,-500.0,0.00016998,2]
[351230119,1738458640098,-500.0,0.00016998,2]
[351230120,1738458640107,-500.0,0.00016998,2]
[351230122,1738458640117,-500.0,0.00016998,2]
[351230124,1738458640127,-500.0,0.00016998,2]
[351230126,1738458640139,-500.0,0.00016998,2]
[351230128,1738458640148,-500.0,0.00016999,2]
[351230130,1738458640158,-500.0,0.00016999,2]
[351230132,1738458640167,-500.0,0.00016999,2]
[351230134,1738458640176,-500.0,0.00016999,2]
[351230136,1738458640185,-500.0,0.00016999,2]
[351230138,1738458640195,-500.0,0.00016999,2]
[351230140,1738458640204,-366.66097143,0.00016999,2]
[351230142,1738458640214,-500.0,0.00016999,2]
[351230143,1738458640224,-500.0,0.00016999,2]
[351230145,1738458640233,-342.940949,0.00016999,2]
[351230147,1738458640243,-500.0,0.00016999,2]
[351230149,1738458640252,-500.0,0.00016999,2]
[351230151,1738458640261,-500.0,0.00016999,2]
[351230153,1738458640270,-500.0,0.00016999,2]
[351230155,1738458640280,-500.0,0.00016999,2]
[351230157,1738458640289,-500.0,0.00016999,2]
[351230158,1738458640298,-500.0,0.00016999,2]
[351230160,1738458640308,-500.0,0.00016999,2]
[351230162,1738458640318,-500.0,0.00016999,2]
[351230163,1738458640328,-500.0,0.00016999,2]
[351230164,1738458640337,-500.0,0.00016999,2]
[351230165,1738458640347,-500.0,0.00016999,2]
[351230166,1738458640357,-166.95869013,0.00016999,2]
[351230167,1738458640366,-500.0,0.00016999,2]
[351230168,1738458640375,-500.0,0.00016999,2]
[351230169,1738458640386,-500.0,0.00016999,2]
[351230170,1738458640396,-500.0,0.00017123,2]
[351230171,1738458640405,-500.0,0.00017123,2]
[351230172,1738458640414,-500.0,0.00017123,2]
[351230173,1738458640424,-500.0,0.00017134,2]
[351230174,1738458640433,-500.0,0.00017134,2]
[351230175,1738458640442,-500.0,0.00017134,2]
[351230176,1738458640452,-500.0,0.00017134,2]
[351230177,1738458640459,-647.56,0.00017134,2]
[351230178,1738458640469,-500.0,0.00017134,2]
[351230179,1738458640478,-500.0,0.00017134,2]
[351230180,1738458640487,-500.0,0.00017134,2]
[351230181,1738458640497,-500.0,0.00017134,2]
[351230183,1738458640506,-500.0,0.00017134,2]
[351230185,1738458640515,-1878.71,0.00017134,2]
[351230187,1738458640525,-500.0,0.00017134,2]
[351230188,1738458640534,-500.0,0.00017134,2]
[351230189,1738458640544,-500.0,0.00017134,2]
[351230190,1738458640554,-500.0,0.00017134,2]
[351230192,1738458640564,-500.0,0.00017134,2]
[351230193,1738458640574,-578.62,0.00017134,2]
[351230194,1738458640583,-1063.75,0.00017134,2]
[351230195,1738458640592,-500.0,0.00017134,2]
[351230196,1738458640601,-500.0,0.00017134,2]
[351230197,1738458640611,-500.0,0.00017135,2]
[351230198,1738458640620,-500.0,0.00017135,2]
[351230199,1738458640630,-500.0,0.00017135,2]
[351230200,1738458640641,-500.0,0.00017135,2]
[351230201,1738458640650,-500.0,0.00017135,2]
[351230202,1738458640659,-500.0,0.00017135,2]
[351230203,1738458640668,-500.0,0.00017135,2]
[351230204,1738458640677,-500.0,0.00017135,2]
[351230205,1738458640686,-500.0,0.00017135,2]
[351230206,1738458640695,-500.0,0.00017135,2]
[351230207,1738458640705,-501.24462813,0.00017135,2]
[351230208,1738458640714,-500.0,0.00017135,2]
[351230209,1738458640725,-500.0,0.00017135,2]
[351230210,1738458640735,-500.0,0.00017135,2]
[351230212,1738458640744,-248.71,0.00017135,2]
[351230213,1738458640753,-500.0,0.00017135,2]
[351230214,1738458640762,-500.0,0.00017135,2]
[351230215,1738458640772,-500.0,0.00017135,2]
[351230216,1738458640781,-500.0,0.00017135,2]
[351230217,1738458640791,-500.0,0.00017135,2]
[351230218,1738458640800,-500.0,0.00017135,2]
[351230219,1738458640809,-500.0,0.00017135,2]
[351230220,1738458640819,-548.45,0.00017135,2]
[351230221,1738458640827,-500.0,0.00017135,2]
[351230222,1738458640837,-500.0,0.00017135,2]
[351230223,1738458640846,-500.83680711,0.00017135,2]
[351230224,1738458640856,-500.0,0.00017135,2]
[351230225,1738458640866,-500.0,0.00017135,2]
[351230226,1738458640875,-5233.31,0.00017135,2]
[351230227,1738458640886,-500.0,0.00017135,2]
[351230228,1738458640895,-500.0,0.00017135,2]
[351230229,1738458640904,-506.70173155,0.00017135,2]
[351230230,1738458640913,-500.0,0.00017135,2]
[351230231,1738458640923,-500.0,0.00017135,2]
[351230232,1738458640932,-768.63858024,0.00017136,5]
[351230233,1738458640941,-500.0,0.00017136,2]
[351230234,1738458640950,-487.96883517,0.00017136,2]
[351230235,1738458640959,-500.0,0.00017136,2]
[351230236,1738458640969,-500.0,0.00017136,2]
[351230237,1738458640978,-500.0,0.00017136,2]
[351230238,1738458640988,-500.0,0.00017136,2]
[351230239,1738458640997,-500.0,0.00017136,2]
[351230240,1738458641006,-500.0,0.00017136,2]
[351230241,1738458641016,-500.0,0.00017136,2]
[351230242,1738458641025,-500.0,0.00017136,2]
[351230243,1738458641034,-500.0,0.0001726,2]
[351230244,1738458641045,-500.0,0.0001726,2]
[351230245,1738458641059,-500.0,0.0001726,2]
[351230246,1738458641068,-500.0,0.00017271,2]
[351230247,1738458641077,-647.56,0.00017271,2]
[351230248,1738458641087,-500.0,0.00017271,2]
[351230249,1738458641098,-500.0,0.00017271,2]
[351230250,1738458641107,-500.0,0.00017271,2]
[351230251,1738458641116,-500.0,0.00017271,2]
[351230252,1738458641126,-500.0,0.00017271,2]
[351230253,1738458641138,-1878.71,0.00017271,2]
[351230254,1738458641147,-500.0,0.00017271,2]
[351230255,1738458641157,-500.0,0.00017271,2]
[351230256,1738458641168,-500.0,0.00017271,2]
[351230257,1738458641177,-500.0,0.00017271,2]
[351230258,1738458641187,-500.0,0.00017271,2]
[351230259,1738458641196,-578.62,0.00017271,2]
[351230260,1738458641206,-1063.75,0.00017271,2]
[351230261,1738458641215,-500.0,0.00017271,2]
[351230262,1738458641225,-500.0,0.00017272,2]
[351230263,1738458641235,-500.0,0.00017272,2]
[351230264,1738458641244,-500.0,0.00017272,2]
[351230265,1738458641253,-500.0,0.00017272,2]
[351230266,1738458641263,-500.0,0.00017272,2]
[351230267,1738458641271,-500.0,0.00017272,2]
[351230268,1738458641281,-500.0,0.00017272,2]
[351230269,1738458641290,-500.0,0.00017272,2]
[351230270,1738458641298,-500.0,0.00017272,2]
[351230271,1738458641307,-500.0,0.00017272,2]
[351230272,1738458641317,-500.0,0.00017272,2]
[351230273,1738458641326,-500.0,0.00017272,2]
[351230274,1738458641335,-453.01936227,0.00017272,2]
[351230275,1738458641345,-500.0,0.00017272,2]
[351230276,1738458641354,-548.45,0.00017272,2]
[351230277,1738458641363,-500.0,0.00017272,2]
[351230278,1738458641372,-500.0,0.00017272,2]
[351230279,1738458641381,-5233.31,0.00017272,2]
[351230280,1738458641394,-500.0,0.00017272,2]
[351230281,1738458641404,-337.48644878,0.00017272,2]
[351230282,1738458641413,-500.0,0.00017272,2]
[351230283,1738458641422,-500.0,0.00017273,2]
[351230284,1738458641431,-500.0,0.00017273,2]
[351230285,1738458641440,-500.0,0.00017273,2]
[351230286,1738458641449,-500.0,0.00017273,2]
[351230287,1738458641458,-500.0,0.00017397,2]
[351230288,1738458641468,-500.0,0.00017397,2]
[351230289,1738458641477,-500.0,0.00017397,2]
[351230290,1738458641486,-261.06844007,0.00017408,5]
[351230291,1738458641495,-500.0,0.00017408,2]
[351230292,1738458641504,-647.56,0.00017408,2]
[351230293,1738458641513,-500.0,0.00017408,2]
[351230294,1738458641523,-500.0,0.00017408,2]
[351230295,1738458641532,-500.0,0.00017408,2]
[351230296,1738458641541,-500.0,0.00017408,2]
[351230297,1738458641551,-500.0,0.00017408,2]
[351230298,1738458641560,-1878.71,0.00017408,2]
[351230299,1738458641569,-500.0,0.00017408,2]
[351230300,1738458641578,-500.0,0.00017408,2]
[351230301,1738458641586,-500.0,0.00017408,2]
[351230302,1738458641595,-578.62,0.00017408,2]
[351230303,1738458641604,-1063.75,0.00017408,2]
[351230304,1738458641613,-500.0,0.00017408,2]
[351230305,1738458641622,-500.0,0.00017409,2]
[351230306,1738458641631,-500.0,0.00017409,2]
[351230307,1738458641642,-242.79231796,0.00017409,2]
[351230308,1738458641658,-257.20768204,0.00017409,2]
[351230309,1738458641667,-500.0,0.00017409,2]
[351230310,1738458641676,-500.0,0.00017409,2]
[351230311,1738458641685,-500.0,0.00017409,2]
[351230312,1738458641694,-500.0,0.00017409,2]
[351230313,1738458641703,-500.0,0.00017409,2]
[351230314,1738458641712,-500.0,0.00017409,2]
[351230315,1738458641720,-500.0,0.00017409,2]
[351230316,1738458641729,-500.0,0.00017409,2]
[351230317,1738458641738,-500.0,0.00017409,2]
[351230318,1738458641747,-174.47,0.00017409,2]
[351230319,1738458641756,-500.0,0.00017409,2]
[351230320,1738458641765,-548.45,0.00017409,2]
[351230321,1738458641774,-500.0,0.00017409,2]
[351230322,1738458641783,-500.0,0.00017409,2]
[351230323,1738458641792,-5233.31,0.00017409,2]
[351230324,1738458641801,-500.0,0.00017409,2]
[351230325,1738458641810,-500.0,0.00017409,2]
[351230326,1738458641819,-312.53972746,0.0001741,2]
[351230327,1738458641831,-187.46027254,0.0001741,2]
[351230328,1738458641840,-500.0,0.0001741,2]
[351230329,1738458641850,-500.0,0.0001741,2]
[351230330,1738458641951,-500.0,0.00017482,2]
[351230331,1738458641963,-686.5,0.00017483,2]
[351230332,1738458641973,-500.0,0.00017483,2]
[351230333,1738458641983,-500.0,0.00017483,2]
[351230334,1738458641992,-500.0,0.00017483,2]
[351230335,1738458642001,-500.0,0.00017483,2]
[351230336,1738458642011,-500.0,0.00017483,2]
[351230337,1738458642020,-1923.94,0.00017483,2]
[351230338,1738458642029,-500.0,0.00017483,2]
[351230339,1738458642039,-500.0,0.00017483,2]
[351230340,1738458642053,-2783.56975578,0.000175,2]
[351230341,1738458642063,-202.3876946,0.00017534,2]
[351230342,1738458642074,-297.6123054,0.00017534,2]
[351230343,1738458642083,-404.18768617,0.00017534,2]
[351230344,1738458642174,-172.44032658,0.00017534,2]
[351230345,1738458642184,-500.0,0.00017543,2]
[351230346,1738458642193,-500.0,0.00017545,2]
[351230347,1738458642202,-647.56,0.00017545,2]
[351230348,1738458642211,-500.0,0.00017545,2]
[351230349,1738458642221,-500.0,0.00017545,2]
[351230350,1738458642230,-500.0,0.00017545,2]
[351230351,1738458642239,-500.0,0.00017545,2]
[351230352,1738458642248,-17.02779847,0.00017545,2]
[351230353,1738458642260,-1861.68220153,0.00017545,2]
[351230354,1738458642269,-500.0,0.00017545,2]
[351230355,1738458642278,-500.0,0.00017545,2]
[351230356,1738458642287,-500.0,0.00017545,2]
[351230357,1738458642296,-578.62,0.00017545,2]
[351230358,1738458642306,-1063.75,0.00017545,2]
[351230359,1738458642315,-500.0,0.00017545,2]
[351230360,1738458642324,-500.0,0.00017546,2]
[351230361,1738458642334,-500.0,0.00017546,2]
[351230362,1738458642343,-515.7590582,0.00017546,2]
[351230363,1738458642352,-588.56444377,0.00017546,2]
[351230364,1738458642361,-500.0,0.00017546,2]
[351230365,1738458642372,-500.0,0.00017546,2]
[351230366,1738458642381,-500.0,0.00017546,2]
[351230367,1738458642394,-500.0,0.00017546,2]
[351230368,1738458642403,-500.0,0.00017546,2]
[351230369,1738458642412,-500.0,0.00017546,2]
[351230370,1738458642421,-548.45,0.00017546,2]
[351230371,1738458642431,-500.0,0.00017546,2]
[351230372,1738458642440,-500.0,0.00017546,2]
[351230373,1738458642449,-5233.31,0.00017546,2]
[351230374,1738458642459,-500.0,0.00017546,2]
[351230375,1738458642469,-500.0,0.00017546,2]
[351230376,1738458642478,-500.0,0.00017547,2]
[351230377,1738458642487,-500.0,0.00017547,2]
[351230378,1738458642495,-500.0,0.00017547,2]
[351230379,1738458642505,-396.0,0.00017562,2]
[351230380,1738458642514,-500.0,0.00017563,2]
[351230381,1738458642523,-500.0,0.00017571,2]
[351230382,1738458642532,-500.0,0.00017571,2]
[351230383,1738458642541,-500.0,0.00017586,2]
[351230384,1738458642550,-500.0,0.00017586,2]
[351230385,1738458642559,-512.35044576,0.00017586,2]
[351230386,1738458642568,-500.0,0.00017586,2]
[351230387,1738458642578,-500.0,0.00017586,2]
[351230388,1738458642587,-500.0,0.00017586,2]
[351230389,1738458642596,-500.0,0.00017586,2]
[351230390,1738458642605,-227.06,0.000176,2]
[351230391,1738458642615,-500.0,0.0001761,2]
[351230392,1738458642623,-686.5,0.0001762,2]
[351230393,1738458642633,-1923.94,0.0001762,2]
[351230394,1738458642644,-500.0,0.0001762,2]
[351230395,1738458642653,-500.47100682,0.00017633,2]
[351230396,1738458642662,-500.0,0.00017651,2]
[351230397,1738458642671,-361.82714319,0.00017651,2]
[351230398,1738458642680,-13245.59911628,0.00017652,2]
[351230399,1738458642689,-500.0,0.00017669,2]
[351230400,1738458642699,-500.0,0.00017669,2]
[351230401,1738458642708,-343.59291712,0.0001767,2]
[351230402,1738458642717,-501.55696237,0.0001767,2]
[351230403,1738458642726,-593.48616833,0.0001767,2]
[351230404,1738458642735,-500.0,0.0001767,2]
[351230405,1738458642744,-500.0,0.0001767,2]
[351230406,1738458642754,-500.0,0.0001767,2]
[351230407,1738458642764,-321.71925793,0.0001767,2]
[351230408,1738458642773,-500.0,0.0001767,2]
[351230409,1738458642783,-500.0,0.0001767,2]
[351230410,1738458642792,-500.0,0.0001767,2]
[351230411,1738458642802,-500.0,0.0001767,2]
[351230412,1738458642811,-500.0,0.0001767,2]
[351230413,1738458642820,-500.0,0.0001767,2]
[351230414,1738458642830,-167.63103314,0.0001767,2]
[351230415,1738458642839,-500.0,0.0001767,2]
[351230416,1738458642849,-500.0,0.0001767,2]
[351230417,1738458642858,-500.0,0.0001767,2]
[351230418,1738458642868,-500.0,0.0001767,2]
[351230419,1738458642878,-501.14,0.0001767,2]
[351230420,1738458642888,-500.0,0.00017671,2]
[351230421,1738458642898,-500.0,0.00017682,2]
[351230422,1738458642908,-647.56,0.00017682,2]
[351230423,1738458642917,-500.0,0.00017682,2]
[351230424,1738458642926,-500.0,0.00017682,2]
[351230425,1738458642936,-500.0,0.00017682,2]
[351230426,1738458642945,-500.0,0.00017682,2]
[351230427,1738458642955,-1878.71,0.00017682,2]
[351230428,1738458642964,-500.0,0.00017682,2]
[351230429,1738458642973,-500.0,0.00017682,2]
[351230430,1738458642982,-500.0,0.00017682,2]
[351230431,1738458642992,-578.62,0.00017682,2]
[351230432,1738458643001,-1063.75,0.00017682,2]
[351230433,1738458643011,-500.0,0.00017683,2]
[351230434,1738458643021,-500.0,0.00017683,2]
[351230435,1738458643030,-500.0,0.00017683,2]
[351230436,1738458643039,-500.0,0.00017683,2]
[351230438,1738458643052,-434.22,0.00017683,2]
[351230440,1738458643061,-500.0,0.00017683,2]
[351230441,1738458643070,-500.0,0.00017683,2]
[351230442,1738458643080,-500.0,0.00017683,2]
[351230443,1738458643090,-548.45,0.00017683,2]
[351230444,1738458643100,-500.0,0.00017683,2]
[351230445,1738458643109,-500.0,0.00017683,2]
[351230446,1738458643119,-5233.31,0.00017683,2]
[351230447,1738458643130,-500.0,0.00017683,2]
[351230448,1738458643143,-500.0,0.00017683,2]
[351230449,1738458643153,-500.0,0.00017684,2]
[351230451,1738458643162,-184.4,0.00017684,2]
[351230452,1738458643171,-686.5,0.00017757,2]
[351230454,1738458643181,-1923.94,0.00017757,2]
[351230456,1738458643190,-500.0,0.00017757,2]
[351230458,1738458643200,-1000.0,0.000178,7]
[351230460,1738458643209,-1000.0,0.000178,8]
[351230462,1738458643219,-1200.0,0.00017801,2]
[351230464,1738458643228,-568.03700156,0.00017807,2]
[351230467,1738458643238,-500.0,0.00017807,2]
[351230470,1738458643248,-233.05394268,0.00017807,2]
[351230472,1738458643257,-500.0,0.00017808,2]
[351230474,1738458643266,-500.0,0.00017819,2]
[351230475,1738458643275,-647.56,0.00017819,2]
[351230477,1738458643285,-500.0,0.00017819,2]
[351230479,1738458643294,-500.0,0.00017819,2]
[351230481,1738458643303,-500.0,0.00017819,2]
[351230483,1738458643313,-1878.71,0.00017819,2]
[351230485,1738458643323,-500.0,0.00017819,2]
[351230487,1738458643332,-500.0,0.00017819,2]
[351230489,1738458643341,-500.0,0.00017819,2]
[351230491,1738458643351,-578.62,0.00017819,2]
[351230493,1738458643361,-1063.75,0.00017819,2]
[351230495,1738458643370,-500.0,0.0001782,2]
[351230498,1738458643379,-500.0,0.0001782,2]
[351230500,1738458643392,-500.0,0.0001782,2]
[351230501,1738458643401,-500.0,0.0001782,2]
[351230502,1738458643411,-400.0,0.0001782,2]
[351230503,1738458643420,-500.0,0.0001782,2]
[351230504,1738458643430,-548.45,0.0001782,2]
[351230505,1738458643440,-500.0,0.0001782,2]
[351230506,1738458643450,-500.0,0.0001782,2]
[351230507,1738458643459,-5233.31,0.0001782,2]
[351230508,1738458643468,-500.0,0.0001782,2]
[351230509,1738458643477,-500.0,0.0001782,2]
[351230510,1738458643486,-500.0,0.00017821,2]
[351230511,1738458643495,-686.5,0.00017894,2]
[351230512,1738458643506,-1923.94,0.00017894,2]
[351230513,1738458643515,-500.0,0.00017894,2]
[351230514,1738458643525,-500.0,0.00017898,2]
[351230515,1738458643535,-230.56933047,0.000179,2]
[351230517,1738458643544,-14223.77508662,0.000179,2]
[351230533,1738458646595,-500.0,0.00016997,2]
[351230534,1738458646604,-500.0,0.00016998,2]
[351230535,1738458646614,-401.64,0.00017134,2]
[351230536,1738458646623,-4657.564464,0.000179,2]
[351230537,1738458646686,-79.90063406,0.000179,2]
[351230538,1738458646697,-18077.05178067,0.000179,2]
[351230539,1738458646707,-500.0,0.00017945,2]
[351230540,1738458646717,-293.24,0.00017956,2]
[351230541,1738458646727,-647.56,0.00017956,2]
[351230542,1738458646736,-500.0,0.00017956,2]
[351230543,1738458646746,-500.0,0.00017956,2]
[351230544,1738458646756,-500.0,0.00017956,2]
[351230545,1738458646766,-1878.71,0.00017956,2]
[351230546,1738458646776,-500.0,0.00017956,2]
[351230547,1738458646786,-500.0,0.00017956,2]
[351230548,1738458646796,-500.0,0.00017956,2]
[351230549,1738458646806,-578.62,0.00017956,2]
[351230550,1738458646815,-1063.75,0.00017956,2]
[351230551,1738458646825,-500.0,0.00017957,2]
[351230552,1738458646834,-500.0,0.00017957,2]
[351230553,1738458646844,-500.0,0.00017957,2]
[351230554,1738458646854,-151.0,0.00017957,2]
[351230555,1738458646863,-155.788187,0.00017957,2]
[351230556,1738458646873,-548.45,0.00017957,2]
[351230557,1738458646985,-553.55374538,0.00017957,2]
[351230558,1738458646996,-500.0,0.00017957,2]
[351230559,1738458647006,-5233.31,0.00017957,2]
[351230560,1738458647016,-500.0,0.00017957,2]
[351230561,1738458647025,-500.0,0.00017957,2]
[351230562,1738458647035,-369.32,0.00017958,2]
[351230563,1738458647045,-500.0,0.00017998,2]
[351230564,1738458647058,-500.0,0.00017998,2]
[351230565,1738458647067,-500.0,0.00017998,2]
[351230566,1738458647076,-500.0,0.00017999,2]
[351230567,1738458647085,-500.0,0.00017999,2]
[351230568,1738458647096,-500.0,0.00017999,2]
[351230569,1738458647105,-500.0,0.00017999,2]
[351230570,1738458647114,-500.0,0.00017999,2]
[351230571,1738458647124,-500.0,0.00017999,2]
[351230572,1738458647133,-500.0,0.00017999,2]
[351230573,1738458647146,-500.0,0.00017999,2]
[351230574,1738458647155,-500.0,0.00017999,2]
[351230575,1738458647164,-320.7103,0.00017999,2]
[351230576,1738458647173,-500.0,0.00017999,2]
[351230577,1738458647183,-500.0,0.00017999,2]
[351230578,1738458647192,-500.0,0.00017999,2]
[351230579,1738458647202,-500.0,0.00017999,2]
[351230580,1738458647211,-500.0,0.00017999,2]
[351230581,1738458647221,-500.0,0.00017999,2]
[351230582,1738458647230,-500.0,0.00017999,2]
[351230583,1738458647240,-500.0,0.00017999,2]
[351230584,1738458647250,-500.0,0.00017999,2]
[351230585,1738458647259,-500.0,0.00017999,2]
[351230586,1738458647269,-500.0,0.00017999,2]
[351230587,1738458647278,-500.0,0.00017999,2]
[351230588,1738458647288,-500.0,0.00017999,2]
[351230589,1738458647298,-500.0,0.00017999,2]
[351230590,1738458647307,-500.0,0.00017999,2]
[351230591,1738458647317,-500.0,0.00017999,2]
[351230592,1738458647327,-500.0,0.00017999,2]
[351230593,1738458647336,-500.0,0.00017999,2]
[351230594,1738458647346,-500.0,0.00017999,2]
[351230595,1738458647355,-500.0,0.00017999,2]
[351230596,1738458647365,-500.0,0.00017999,2]
[351230597,1738458647374,-439.87867522,0.00017999,2]
[351230598,1738458647385,-500.0,0.00017999,2]
[351230599,1738458647396,-500.0,0.00017999,2]
[351230600,1738458647405,-500.0,0.00017999,2]
[351230601,1738458647414,-500.0,0.00017999,2]
[351230602,1738458647424,-500.0,0.00017999,2]
[351230603,1738458647434,-500.0,0.00017999,2]
[351230604,1738458647443,-646.8857,0.00017999,2]
[351230605,1738458647453,-500.0,0.00017999,2]
[351230606,1738458647462,-500.0,0.00017999,2]
[351230607,1738458647472,-500.0,0.00017999,2]
[351230608,1738458647481,-500.0,0.00017999,2]
[351230609,1738458647490,-500.0,0.00017999,2]
[351230610,1738458647499,-500.0,0.00017999,2]
[351230611,1738458647508,-500.0,0.00017999,2]
[351230612,1738458647517,-500.0,0.00017999,2]
[351230613,1738458647526,-500.0,0.00017999,2]
[351230614,1738458647536,-500.0,0.00017999,2]
[351230615,1738458647545,-539.87425114,0.00017999,2]
[351230616,1738458647554,-500.0,0.00017999,2]
[351230617,1738458647563,-500.0,0.00017999,2]
[351230618,1738458647572,-500.0,0.00017999,2]
[351230619,1738458647581,-500.0,0.00017999,2]
[351230620,1738458647590,-500.0,0.00017999,2]
[351230621,1738458647599,-500.0,0.00017999,2]
[351230622,1738458647608,-500.0,0.00017999,2]
[351230623,1738458647618,-500.0,0.00017999,2]
[351230624,1738458647627,-500.0,0.00017999,2]
[351230625,1738458647638,-500.0,0.00017999,2]
[351230626,1738458647648,-500.0,0.00017999,2]
[351230627,1738458647657,-500.0,0.00017999,2]
[351230628,1738458647667,-500.0,0.00017999,2]
[351230629,1738458647676,-500.0,0.00017999,2]
[351230630,1738458647685,-500.0,0.00017999,2]
[351230631,1738458647695,-500.0,0.00017999,2]
[351230632,1738458647704,-500.0,0.00017999,2]
[351230633,1738458647714,-500.0,0.00017999,2]
[351230634,1738458647722,-500.0,0.00017999,2]
[351230635,1738458647732,-298.37255857,0.00017999,2]
[351230636,1738458647742,-500.0,0.00017999,2]
[351230637,1738458647752,-500.0,0.00017999,2]
[351230638,1738458647761,-645.09835103,0.00017999,2]
[351230639,1738458647771,-500.0,0.00017999,2]
[351230640,1738458647780,-500.0,0.00017999,2]
[351230641,1738458647789,-500.0,0.00017999,2]
[351230642,1738458647799,-500.0,0.00017999,2]
[351230643,1738458647808,-500.0,0.00017999,2]
[351230644,1738458647817,-322.34702438,0.00017999,2]
[351230645,1738458647827,-500.0,0.00017999,2]
[351230646,1738458647836,-500.0,0.00017999,2]
[351230647,1738458647845,-500.0,0.00017999,2]
[351230648,1738458647854,-500.0,0.00017999,2]
[351230649,1738458647864,-500.0,0.00017999,2]
[351230650,1738458647874,-506.61802956,0.00017999,2]
[351230651,1738458647883,-500.0,0.00017999,2]
[351230652,1738458647895,-416.06495321,0.00017999,2]
[351230653,1738458647905,-500.0,0.00017999,2]
[351230654,1738458647915,-500.0,0.00017999,2]
[351230655,1738458647924,-500.0,0.00017999,2]
[351230656,1738458647934,-500.0,0.00017999,2]
[351230657,1738458647943,-500.0,0.00017999,2]
[351230658,1738458647953,-500.0,0.00017999,2]
[351230659,1738458647962,-500.0,0.00017999,2]
[351230660,1738458647972,-500.0,0.00017999,2]